[Event "*** Titled Tuesday Blitz"]
[Site "Chess.com"]
[Date "2020.05.26"]
[Round "6"]
[White "keepitcool9499"]
[Black "Goryachkina"]
[Result "1/2-1/2"]
[WhiteElo "2448"]
[BlackElo "2615"]
[TimeControl "180+1"]
[EndTime "11:07:12 PDT"]
[Termination "Game drawn by agreement"]

1. d4 {[%clk 0:03:00.9]} 1... d5 {[%clk 0:02:59.4]} 2. c4 {[%clk 0:03:00.7]}
2... e6 {[%clk 0:02:59.6]} 3. Nc3 {[%clk 0:03:00.8]} 3... Nf6 {[%clk 0:02:59.8]}
4. Nf3 {[%clk 0:03:01.4]} 4... Nbd7 {[%clk 0:02:58.3]} 5. e3 {[%clk 0:03:01.4]}
5... a6 {[%clk 0:02:40.7]} 6. Bd3 {[%clk 0:02:56.3]} 6... dxc4 {[%clk
0:02:39.8]} 7. Bxc4 {[%clk 0:02:57.2]} 7... b5 {[%clk 0:02:40.1]} 8. Be2 {[%clk
0:02:57.2]} 8... Bb7 {[%clk 0:02:40.1]} 9. O-O {[%clk 0:02:56.7]} 9... c5 {[%clk
0:02:38.9]} 10. dxc5 {[%clk 0:02:56.1]} 10... Bxc5 {[%clk 0:02:37.4]} 11. a3
{[%clk 0:02:56.5]} 11... O-O {[%clk 0:02:31.3]} 12. b4 {[%clk 0:02:56.7]} 12...
Be7 {[%clk 0:02:24.2]} 13. Bb2 {[%clk 0:02:56.2]} 13... Rc8 {[%clk 0:02:24.1]}
14. Nd4 {[%clk 0:02:52.3]} 14... Nb6 {[%clk 0:02:22.4]} 15. Qb3 {[%clk
0:02:45.8]} 15... Nc4 {[%clk 0:02:18.8]} 16. Bxc4 {[%clk 0:02:44.1]} 16... Rxc4
{[%clk 0:02:18.2]} 17. Rfd1 {[%clk 0:02:32.9]} 17... Qc8 {[%clk 0:02:17.7]} 18.
Rac1 {[%clk 0:02:30.9]} 18... e5 {[%clk 0:02:15.5]} 19. Nf3 {[%clk 0:02:30.6]}
19... Bxf3 {[%clk 0:02:13]} 20. gxf3 {[%clk 0:02:31.5]} 20... Qh3 {[%clk
0:02:08]} 21. Nd5 {[%clk 0:02:16.2]} 21... Nxd5 {[%clk 0:02:05]} 22. Rxd5 {[%clk
0:02:02.4]} 22... Rh4 {[%clk 0:02:01.5]} 23. Bxe5 {[%clk 0:01:59.5]} 23... Qxf3
{[%clk 0:01:56.2]} 24. Bg3 {[%clk 0:01:56.6]} 24... Rh6 {[%clk 0:01:48.2]} 25.
Qd1 {[%clk 0:01:48.5]} 25... Qe4 {[%clk 0:01:40]} 26. Qd3 {[%clk 0:01:46.8]}
26... Qg4 {[%clk 0:01:33.2]} 27. Rd4 {[%clk 0:01:36.7]} 27... Qh3 {[%clk
0:01:31.2]} 28. Qe4 {[%clk 0:01:30.7]} 28... Rg6 {[%clk 0:01:23.3]} 29. Qg2
{[%clk 0:01:29.4]} 29... Qe6 {[%clk 0:01:21.3]} 30. Qd5 {[%clk 0:01:27.7]} 30...
Qxd5 {[%clk 0:01:16.6]} 31. Rxd5 {[%clk 0:01:28.6]} 31... h6 {[%clk 0:01:13.6]}
32. Rc7 {[%clk 0:01:25.7]} 32... Bf6 {[%clk 0:01:05.4]} 33. Rdd7 {[%clk
0:01:23.6]} 33... Bb2 {[%clk 0:01:03.9]} 34. Kf1 {[%clk 0:01:21.1]} 34... Bxa3
{[%clk 0:01:02]} 35. Bd6 {[%clk 0:01:21.5]} 35... Re8 {[%clk 0:00:54.3]} 36.
Rxf7 {[%clk 0:00:49.9]} 36... a5 {[%clk 0:00:47.2]} 37. Rb7 {[%clk 0:00:39.6]}
37... Rxd6 {[%clk 0:00:22.9]} 38. Rxg7+ {[%clk 0:00:37.5]} 38... Kh8 {[%clk
0:00:22.8]} 39. Rh7+ {[%clk 0:00:37.2]} 39... Kg8 {[%clk 0:00:23]} 1/2-1/2

[Event "*** Titled Tuesday Blitz"]
[Site "Chess.com"]
[Date "2020.05.26"]
[Round "6"]
[White "manuellarrea"]
[Black "mamey78"]
[Result "0-1"]
[WhiteElo "2175"]
[BlackElo "2402"]
[TimeControl "180+1"]
[EndTime "11:07:12 PDT"]
[Termination "mamey78 won on time"]

1. e4 {[%clk 0:02:16.6]} 1... e5 {[%clk 0:02:58]} 2. Nf3 {[%clk 0:02:16.3]} 2...
Nc6 {[%clk 0:02:57.7]} 3. Bc4 {[%clk 0:02:14.3]} 3... Nf6 {[%clk 0:02:56.8]} 4.
Ng5 {[%clk 0:02:13.4]} 4... d5 {[%clk 0:02:55.9]} 5. exd5 {[%clk 0:02:13.5]}
5... Na5 {[%clk 0:02:55.9]} 6. Bb5+ {[%clk 0:02:13]} 6... c6 {[%clk 0:02:56]} 7.
dxc6 {[%clk 0:02:13.2]} 7... bxc6 {[%clk 0:02:56.9]} 8. Bd3 {[%clk 0:02:12.6]}
8... h6 {[%clk 0:02:30.7]} 9. Ne4 {[%clk 0:02:10.9]} 9... Nd5 {[%clk 0:02:30]}
10. O-O {[%clk 0:02:09.3]} 10... Be7 {[%clk 0:02:27.3]} 11. Ng3 {[%clk
0:02:08.4]} 11... O-O {[%clk 0:02:26.4]} 12. Bf5 {[%clk 0:02:07.8]} 12... Bb7
{[%clk 0:02:26]} 13. d3 {[%clk 0:02:06]} 13... c5 {[%clk 0:02:03.9]} 14. Nc3
{[%clk 0:01:36.5]} 14... Nf6 {[%clk 0:01:51.4]} 15. Nce4 {[%clk 0:01:32.3]}
15... Nc6 {[%clk 0:01:51.2]} 16. c3 {[%clk 0:01:27.6]} 16... Rb8 {[%clk
0:01:44.4]} 17. Re1 {[%clk 0:01:25.1]} 17... Re8 {[%clk 0:01:36.5]} 18. Nxf6+
{[%clk 0:01:17.2]} 18... Bxf6 {[%clk 0:01:35.6]} 19. Ne4 {[%clk 0:01:16.8]}
19... Be7 {[%clk 0:01:21.2]} 20. Qg4 {[%clk 0:00:42.5]} 20... Kf8 {[%clk
0:01:06.9]} 21. Qh5 {[%clk 0:00:32.6]} 21... Bf6 {[%clk 0:00:57.9]} 22. Nxc5
{[%clk 0:00:24.6]} 22... Bc8 {[%clk 0:00:52.9]} 23. Bxc8 {[%clk 0:00:23.7]}
23... Rxc8 {[%clk 0:00:53.8]} 24. Be3 {[%clk 0:00:13.4]} 24... Qd5 {[%clk
0:00:44.5]} 25. c4 {[%clk 0:00:10]} 25... Qd8 {[%clk 0:00:42]} 26. b3 {[%clk
0:00:07.9]} 26... Kg8 {[%clk 0:00:38.9]} 27. Rad1 {[%clk 0:00:06.1]} 27... Nb4
{[%clk 0:00:38.8]} 28. Ne4 {[%clk 0:00:04.9]} 28... Nxa2 {[%clk 0:00:29.7]} 0-1

[Event "*** Titled Tuesday Blitz"]
[Site "Chess.com"]
[Date "2020.05.26"]
[Round "6"]
[White "Muguet7"]
[Black "Kirill_Klukin"]
[Result "0-1"]
[WhiteElo "2467"]
[BlackElo "2694"]
[TimeControl "180+1"]
[EndTime "11:07:16 PDT"]
[Termination "Kirill_Klukin won by resignation"]

1. e4 {[%clk 0:03:00.9]} 1... c5 {[%clk 0:02:59.1]} 2. Nf3 {[%clk 0:03:00.5]}
2... Nc6 {[%clk 0:02:59.2]} 3. Bb5 {[%clk 0:03:00.2]} 3... g6 {[%clk 0:02:58.9]}
4. O-O {[%clk 0:02:56.5]} 4... Bg7 {[%clk 0:02:58.8]} 5. Bxc6 {[%clk 0:02:56.1]}
5... bxc6 {[%clk 0:02:59.7]} 6. Re1 {[%clk 0:02:54.9]} 6... Nh6 {[%clk
0:02:59.5]} 7. d3 {[%clk 0:02:54.6]} 7... O-O {[%clk 0:02:58.9]} 8. Nc3 {[%clk
0:02:54.7]} 8... d6 {[%clk 0:02:57]} 9. h3 {[%clk 0:02:54]} 9... f6 {[%clk
0:02:56.9]} 10. Be3 {[%clk 0:02:52.3]} 10... Nf7 {[%clk 0:02:56.8]} 11. a4
{[%clk 0:02:47.1]} 11... e5 {[%clk 0:02:54]} 12. Qc1 {[%clk 0:02:07.1]} 12... h6
{[%clk 0:02:45]} 13. Nh4 {[%clk 0:02:03]} 13... Kh7 {[%clk 0:02:44.2]} 14. Nf3
{[%clk 0:01:50.1]} 14... f5 {[%clk 0:02:42.3]} 15. exf5 {[%clk 0:01:47.6]} 15...
gxf5 {[%clk 0:02:42]} 16. Rb1 {[%clk 0:01:34.1]} 16... a5 {[%clk 0:02:40.6]} 17.
Ne2 {[%clk 0:01:28]} 17... Rg8 {[%clk 0:02:34.3]} 18. Bd2 {[%clk 0:01:16.6]}
18... Be6 {[%clk 0:02:27.4]} 19. Nf4 {[%clk 0:01:13.7]} 19... Bd7 {[%clk
0:02:19.8]} 20. Nh5 {[%clk 0:01:13.5]} 20... Bh8 {[%clk 0:02:05.7]} 21. c3
{[%clk 0:01:11.2]} 21... Rg6 {[%clk 0:01:44]} 22. Kh1 {[%clk 0:01:03.8]} 22...
Qg8 {[%clk 0:01:39.8]} 23. Nh4 {[%clk 0:00:59.1]} 23... Be6 {[%clk 0:01:15.5]}
24. Nxg6 {[%clk 0:00:55.4]} 24... Qxg6 {[%clk 0:01:16.4]} 25. Qd1 {[%clk
0:00:45.7]} 25... Rg8 {[%clk 0:01:16.1]} 26. Rg1 {[%clk 0:00:44.7]} 26... Bd5
{[%clk 0:01:16.1]} 27. Ng3 {[%clk 0:00:43.4]} 27... Bf6 {[%clk 0:01:13.6]} 28.
c4 {[%clk 0:00:43]} 28... Be6 {[%clk 0:01:12.7]} 29. Qh5 {[%clk 0:00:40.6]}
29... Qxh5 {[%clk 0:01:04.1]} 30. Nxh5 {[%clk 0:00:40.6]} 30... Bh4 {[%clk
0:01:04.4]} 31. g3 {[%clk 0:00:28.4]} 31... Bd8 {[%clk 0:01:03.9]} 32. Rge1
{[%clk 0:00:22]} 32... Ng5 {[%clk 0:01:01.1]} 33. h4 {[%clk 0:00:20.6]} 33...
Nf3 {[%clk 0:00:59.9]} 34. Re2 {[%clk 0:00:17.5]} 34... Nxd2 {[%clk 0:00:59.4]}
35. Rxd2 {[%clk 0:00:17.7]} 35... Bf7 {[%clk 0:00:59.8]} 36. f4 {[%clk
0:00:13.4]} 36... Bxh5 {[%clk 0:00:58.1]} 37. fxe5 {[%clk 0:00:13.5]} 37... dxe5
{[%clk 0:00:59]} 38. Re1 {[%clk 0:00:13.6]} 38... Bf6 {[%clk 0:00:57.6]} 39. Kh2
{[%clk 0:00:13.9]} 39... Rd8 {[%clk 0:00:55.6]} 40. Rf2 {[%clk 0:00:13.4]} 40...
Kg6 {[%clk 0:00:55.6]} 41. Ref1 {[%clk 0:00:13.1]} 41... Bg4 {[%clk 0:00:55.3]}
42. Rd2 {[%clk 0:00:13.4]} 42... e4 {[%clk 0:00:54]} 43. Rdf2 {[%clk 0:00:08.6]}
43... Rxd3 {[%clk 0:00:53.3]} 0-1

[Event "*** Titled Tuesday Blitz"]
[Site "Chess.com"]
[Date "2020.05.26"]
[Round "6"]
[White "seastar"]
[Black "JiangoFett"]
[Result "0-1"]
[WhiteElo "1997"]
[BlackElo "2331"]
[TimeControl "180+1"]
[EndTime "11:07:17 PDT"]
[Termination "JiangoFett won by resignation"]

1. d4 {[%clk 0:02:06.2]} 1... Nf6 {[%clk 0:02:58.7]} 2. c4 {[%clk 0:02:06.6]}
2... e6 {[%clk 0:02:58.7]} 3. Nc3 {[%clk 0:02:07]} 3... Bb4 {[%clk 0:02:58.7]}
4. e3 {[%clk 0:02:07.1]} 4... b6 {[%clk 0:02:58.5]} 5. Bd3 {[%clk 0:02:07.6]}
5... Bb7 {[%clk 0:02:57.6]} 6. f3 {[%clk 0:02:07.3]} 6... c5 {[%clk 0:02:57.3]}
7. a3 {[%clk 0:02:02.4]} 7... Ba5 {[%clk 0:02:56]} 8. Ne2 {[%clk 0:02:00.1]}
8... cxd4 {[%clk 0:02:53.2]} 9. exd4 {[%clk 0:01:59.5]} 9... Bxc3+ {[%clk
0:02:47.8]} 10. Nxc3 {[%clk 0:01:58.2]} 10... O-O {[%clk 0:02:44.7]} 11. O-O
{[%clk 0:01:58.1]} 11... d5 {[%clk 0:02:43.6]} 12. cxd5 {[%clk 0:01:43.3]} 12...
Nxd5 {[%clk 0:02:39.8]} 13. Nxd5 {[%clk 0:01:42.5]} 13... Qxd5 {[%clk
0:02:31.5]} 14. Be4 {[%clk 0:01:32.7]} 14... Qd7 {[%clk 0:02:31.6]} 15. Be3
{[%clk 0:01:32.7]} 15... Nc6 {[%clk 0:02:24.8]} 16. d5 {[%clk 0:01:21.4]} 16...
exd5 {[%clk 0:02:23.2]} 17. Qxd5 {[%clk 0:01:21]} 17... Rad8 {[%clk 0:02:10.4]}
18. Qxd7 {[%clk 0:01:12.5]} 18... Rxd7 {[%clk 0:02:11.3]} 19. Rfd1 {[%clk
0:01:12.5]} 19... Rfd8 {[%clk 0:02:08.5]} 20. Rxd7 {[%clk 0:01:04.9]} 20... Rxd7
{[%clk 0:02:09.4]} 21. Rc1 {[%clk 0:01:03.2]} 21... Ne7 {[%clk 0:01:44.8]} 22.
Bxb7 {[%clk 0:00:40.1]} 22... Rxb7 {[%clk 0:01:45.7]} 23. Bf4 {[%clk 0:00:40.3]}
23... f6 {[%clk 0:01:43.1]} 24. Kf2 {[%clk 0:00:39.5]} 24... Kf7 {[%clk
0:01:41.9]} 25. Rc7 {[%clk 0:00:35]} 25... Rxc7 {[%clk 0:01:40]} 26. Bxc7 {[%clk
0:00:35.9]} 26... Nd5 {[%clk 0:01:39.2]} 27. Bd6 {[%clk 0:00:31.8]} 27... Ke6
{[%clk 0:01:35.2]} 28. Bf8 {[%clk 0:00:31]} 28... g6 {[%clk 0:01:35]} 29. g3
{[%clk 0:00:29.9]} 29... b5 {[%clk 0:01:27.6]} 30. Ke2 {[%clk 0:00:28.8]} 30...
Nb6 {[%clk 0:01:27.1]} 31. Bc5 {[%clk 0:00:26.2]} 31... Nc4 {[%clk 0:01:23]} 32.
b3 {[%clk 0:00:21.5]} 32... Kd5 {[%clk 0:01:11.2]} 33. bxc4+ {[%clk 0:00:17.7]}
33... Kxc5 {[%clk 0:01:10.9]} 34. cxb5 {[%clk 0:00:18.1]} 34... Kxb5 {[%clk
0:01:11.2]} 35. Kd3 {[%clk 0:00:16.9]} 35... Ka4 {[%clk 0:01:10.9]} 36. Kd4
{[%clk 0:00:16.3]} 36... Kxa3 {[%clk 0:01:10.5]} 37. Kd5 {[%clk 0:00:17.2]}
37... a5 {[%clk 0:01:10.2]} 38. Ke6 {[%clk 0:00:18.1]} 38... f5 {[%clk
0:01:09.7]} 39. g4 {[%clk 0:00:17.4]} 39... fxg4 {[%clk 0:01:09.5]} 40. fxg4
{[%clk 0:00:16.6]} 40... a4 {[%clk 0:01:09.9]} 41. h4 {[%clk 0:00:17]} 41... Kb4
{[%clk 0:01:08.4]} 42. h5 {[%clk 0:00:14.8]} 42... gxh5 {[%clk 0:01:08.1]} 43.
gxh5 {[%clk 0:00:15.7]} 43... a3 {[%clk 0:01:08.7]} 44. Kf6 {[%clk 0:00:16.1]}
44... a2 {[%clk 0:01:08.8]} 45. Kg7 {[%clk 0:00:16.3]} 45... a1=Q+ {[%clk
0:01:09.4]} 46. Kxh7 {[%clk 0:00:16.7]} 46... Kc5 {[%clk 0:01:06.9]} 47. h6
{[%clk 0:00:16.5]} 47... Qf6 {[%clk 0:00:54.7]} 48. Kg8 {[%clk 0:00:16.6]} 48...
Qxh6 {[%clk 0:00:54.5]} 0-1

[Event "*** Titled Tuesday Blitz"]
[Site "Chess.com"]
[Date "2020.05.26"]
[Round "6"]
[White "AGW2016"]
[Black "Crazy_girl99"]
[Result "1-0"]
[WhiteElo "2236"]
[BlackElo "2395"]
[TimeControl "180+1"]
[EndTime "11:07:18 PDT"]
[Termination "AGW2016 won by resignation"]

1. d4 {[%clk 0:03:00.9]} 1... e6 {[%clk 0:02:59.4]} 2. c4 {[%clk 0:03:01.1]}
2... d5 {[%clk 0:02:59.3]} 3. Nf3 {[%clk 0:03:01.6]} 3... c6 {[%clk 0:02:57.8]}
4. g3 {[%clk 0:03:01.8]} 4... Nf6 {[%clk 0:02:58.2]} 5. Bg2 {[%clk 0:03:02.5]}
5... dxc4 {[%clk 0:02:57.2]} 6. O-O {[%clk 0:03:02.1]} 6... b5 {[%clk
0:02:56.5]} 7. a4 {[%clk 0:03:00.8]} 7... Bb7 {[%clk 0:02:53.8]} 8. b3 {[%clk
0:02:56.7]} 8... cxb3 {[%clk 0:02:51.5]} 9. Qxb3 {[%clk 0:02:56.9]} 9... b4
{[%clk 0:02:52.1]} 10. Nbd2 {[%clk 0:02:56.3]} 10... a5 {[%clk 0:02:51.7]} 11.
Nc4 {[%clk 0:02:56.5]} 11... Be7 {[%clk 0:02:51.4]} 12. Rd1 {[%clk 0:02:54.6]}
12... O-O {[%clk 0:02:51.7]} 13. Bg5 {[%clk 0:02:51.5]} 13... h6 {[%clk
0:02:49.5]} 14. Bxf6 {[%clk 0:02:51.4]} 14... Bxf6 {[%clk 0:02:50]} 15. Nfe5
{[%clk 0:02:52]} 15... Ra6 {[%clk 0:02:36.7]} 16. Rac1 {[%clk 0:02:48.9]} 16...
Nd7 {[%clk 0:02:35.1]} 17. Nd6 {[%clk 0:02:35]} 17... Ba8 {[%clk 0:02:12.6]} 18.
Nxc6 {[%clk 0:02:27.5]} 18... Bxc6 {[%clk 0:02:11.3]} 19. Bxc6 {[%clk
0:02:27.3]} 19... Nb8 {[%clk 0:02:10.5]} 20. Nb7 {[%clk 0:02:18.2]} 20... Qe7
{[%clk 0:02:07.5]} 21. Bg2 {[%clk 0:02:18.1]} 21... Ra7 {[%clk 0:01:39.4]} 22.
Nc5 {[%clk 0:02:14.8]} 22... Rd8 {[%clk 0:01:38.5]} 23. e3 {[%clk 0:02:12.6]}
23... Rc7 {[%clk 0:01:29.4]} 24. Ne4 {[%clk 0:02:06.9]} 24... Rdc8 {[%clk
0:01:26.1]} 25. Rc5 {[%clk 0:02:05.2]} 25... Rxc5 {[%clk 0:01:20.3]} 26. Nxc5
{[%clk 0:02:04.9]} 26... Nd7 {[%clk 0:01:14.2]} 27. Nb7 {[%clk 0:01:49.5]} 27...
Rc3 {[%clk 0:01:07.5]} 28. Qb2 {[%clk 0:01:43.4]} 28... Ra3 {[%clk 0:01:05.1]}
29. Nxa5 {[%clk 0:01:42.2]} 29... Rxa4 {[%clk 0:01:03.9]} 30. Nc6 {[%clk
0:01:40.9]} 30... Qd6 {[%clk 0:00:58.1]} 31. e4 {[%clk 0:01:35.2]} 31... e5
{[%clk 0:00:53.1]} 32. d5 {[%clk 0:01:35.3]} 32... Nb6 {[%clk 0:00:40]} 33. Bf1
{[%clk 0:01:25.9]} 33... h5 {[%clk 0:00:26.4]} 34. h4 {[%clk 0:01:13.4]} 34...
Nd7 {[%clk 0:00:24.3]} 35. Bb5 {[%clk 0:01:11.4]} 35... Ra5 {[%clk 0:00:19.5]}
36. Nxa5 {[%clk 0:01:10.6]} 36... Qb6 {[%clk 0:00:16.9]} 37. Bxd7 {[%clk
0:01:10]} 37... Qxa5 {[%clk 0:00:16.6]} 38. Bc6 {[%clk 0:01:10.4]} 38... Qc5
{[%clk 0:00:16.4]} 39. Rb1 {[%clk 0:01:05.5]} 39... Be7 {[%clk 0:00:14.6]} 40.
Rc1 {[%clk 0:01:05.7]} 40... Qb6 {[%clk 0:00:13.9]} 41. Qb3 {[%clk 0:01:05.5]}
41... Bd6 {[%clk 0:00:14]} 42. Rc2 {[%clk 0:01:04.5]} 42... g6 {[%clk
0:00:13.3]} 43. Kg2 {[%clk 0:01:04.7]} 43... Qd4 {[%clk 0:00:13.4]} 44. Qc4
{[%clk 0:01:03.7]} 44... Qa1 {[%clk 0:00:13]} 45. Bd7 {[%clk 0:00:59.5]} 45...
Qa7 {[%clk 0:00:12.3]} 46. Qc6 {[%clk 0:00:58]} 46... b3 {[%clk 0:00:11.8]} 47.
Rb2 {[%clk 0:00:57.6]} 47... Qa3 {[%clk 0:00:11.9]} 48. Rxb3 {[%clk 0:00:56]}
48... Qxb3 {[%clk 0:00:11.8]} 49. Qxd6 {[%clk 0:00:56.7]} 49... Qd3 {[%clk
0:00:11.6]} 50. Qxe5 {[%clk 0:00:56.5]} 50... Qe2 {[%clk 0:00:11.3]} 51. Bc6
{[%clk 0:00:55.7]} 51... Qe1 {[%clk 0:00:11.3]} 52. d6 {[%clk 0:00:55.8]} 1-0

[Event "*** Titled Tuesday Blitz"]
[Site "Chess.com"]
[Date "2020.05.26"]
[Round "6"]
[White "pavelalexandru07"]
[Black "Belka1989"]
[Result "0-1"]
[WhiteElo "2149"]
[BlackElo "2365"]
[TimeControl "180+1"]
[EndTime "11:07:20 PDT"]
[Termination "Belka1989 won by resignation"]

1. d4 {[%clk 0:03:00.9]} 1... Nf6 {[%clk 0:02:45.3]} 2. c4 {[%clk 0:03:00]} 2...
e5 {[%clk 0:02:45.2]} 3. dxe5 {[%clk 0:02:52.9]} 3... Ng4 {[%clk 0:02:45.1]} 4.
Nf3 {[%clk 0:02:51.8]} 4... Bc5 {[%clk 0:02:44.5]} 5. e3 {[%clk 0:02:49]} 5...
Nc6 {[%clk 0:02:43.4]} 6. Nc3 {[%clk 0:02:48.4]} 6... O-O {[%clk 0:02:40.4]} 7.
Be2 {[%clk 0:02:46.5]} 7... Re8 {[%clk 0:02:40.7]} 8. O-O {[%clk 0:02:45.9]}
8... Ngxe5 {[%clk 0:02:39.5]} 9. Nxe5 {[%clk 0:02:44.9]} 9... Nxe5 {[%clk
0:02:40.4]} 10. Ne4 {[%clk 0:02:33.8]} 10... Bf8 {[%clk 0:02:38.5]} 11. Ng3
{[%clk 0:02:32.5]} 11... a5 {[%clk 0:02:36.4]} 12. b3 {[%clk 0:02:32.1]} 12...
Ra6 {[%clk 0:02:34]} 13. Bb2 {[%clk 0:02:30.6]} 13... Rh6 {[%clk 0:02:29.3]} 14.
h3 {[%clk 0:02:20]} 14... Qh4 {[%clk 0:02:24.6]} 15. Nf5 {[%clk 0:02:18.6]}
15... Qf6 {[%clk 0:02:23.9]} 16. Nxh6+ {[%clk 0:02:17]} 16... Qxh6 {[%clk
0:02:24.8]} 17. f4 {[%clk 0:01:54.8]} 17... Nc6 {[%clk 0:02:21.6]} 18. Qd3
{[%clk 0:01:46.3]} 18... Nb4 {[%clk 0:02:06.4]} 19. Qd2 {[%clk 0:01:42.6]} 19...
b6 {[%clk 0:02:04.3]} 20. a3 {[%clk 0:01:38.7]} 20... Na6 {[%clk 0:02:03.6]} 21.
Bd4 {[%clk 0:01:36.1]} 21... Nc5 {[%clk 0:01:57.4]} 22. Qc2 {[%clk 0:01:28.8]}
22... Bb7 {[%clk 0:01:53.5]} 23. Bf3 {[%clk 0:01:24.5]} 23... Bxf3 {[%clk
0:01:47.5]} 24. Rxf3 {[%clk 0:01:25.4]} 24... Ne4 {[%clk 0:01:48]} 25. Qb2
{[%clk 0:00:54.8]} 25... Qc6 {[%clk 0:01:16.3]} 26. Kh2 {[%clk 0:00:47.3]} 26...
d5 {[%clk 0:01:07.5]} 27. Rc1 {[%clk 0:00:44.2]} 27... dxc4 {[%clk 0:01:00.7]}
28. Rxc4 {[%clk 0:00:43.4]} 28... Qd7 {[%clk 0:01:00.9]} 29. Rc1 {[%clk
0:00:32.3]} 29... c5 {[%clk 0:00:54.1]} 30. Be5 {[%clk 0:00:32.4]} 30... f6
{[%clk 0:00:49.9]} 31. Bc3 {[%clk 0:00:31.8]} 31... Qd3 {[%clk 0:00:49.1]} 32.
Qc2 {[%clk 0:00:28.9]} 32... Rd8 {[%clk 0:00:40.2]} 33. Qxd3 {[%clk 0:00:27.9]}
33... Rxd3 {[%clk 0:00:41.1]} 34. Be1 {[%clk 0:00:17.6]} 34... Rxb3 {[%clk
0:00:41.4]} 35. a4 {[%clk 0:00:17.2]} 35... Ra3 {[%clk 0:00:38.1]} 36. Rc4
{[%clk 0:00:16.8]} 36... Nd6 {[%clk 0:00:34.5]} 37. Rc3 {[%clk 0:00:16]} 37...
Rxa4 {[%clk 0:00:33.9]} 38. Rf2 {[%clk 0:00:15.6]} 38... Ne4 {[%clk 0:00:33.6]}
0-1

[Event "*** Titled Tuesday Blitz"]
[Site "Chess.com"]
[Date "2020.05.26"]
[Round "6"]
[White "Savva09022009"]
[Black "albi1999"]
[Result "0-1"]
[WhiteElo "2408"]
[BlackElo "2613"]
[TimeControl "180+1"]
[EndTime "11:07:22 PDT"]
[Termination "albi1999 won on time"]

1. d4 {[%clk 0:03:00.9]} 1... d5 {[%clk 0:02:57.3]} 2. Nc3 {[%clk 0:03:00.6]}
2... Nf6 {[%clk 0:02:55.8]} 3. Bf4 {[%clk 0:03:01.1]} 3... e6 {[%clk 0:02:55]}
4. e3 {[%clk 0:03:00.1]} 4... Bb4 {[%clk 0:02:54.4]} 5. Bd3 {[%clk 0:02:57.6]}
5... c5 {[%clk 0:02:53.1]} 6. dxc5 {[%clk 0:02:53]} 6... Nbd7 {[%clk 0:02:53.1]}
7. Nf3 {[%clk 0:02:52.5]} 7... Nxc5 {[%clk 0:02:48.7]} 8. O-O {[%clk 0:02:49.7]}
8... Bxc3 {[%clk 0:02:48]} 9. bxc3 {[%clk 0:02:50.1]} 9... O-O {[%clk
0:02:48.5]} 10. c4 {[%clk 0:02:48.9]} 10... b6 {[%clk 0:02:46.9]} 11. Ne5 {[%clk
0:02:41.4]} 11... Bb7 {[%clk 0:02:44.6]} 12. Qe2 {[%clk 0:02:31.2]} 12... Qe7
{[%clk 0:02:36.9]} 13. Rad1 {[%clk 0:02:25.2]} 13... h6 {[%clk 0:02:35.1]} 14.
Bg3 {[%clk 0:02:20.3]} 14... Nfe4 {[%clk 0:02:31.6]} 15. cxd5 {[%clk 0:02:18.8]}
15... Bxd5 {[%clk 0:02:26.6]} 16. c4 {[%clk 0:02:11.4]} 16... Bb7 {[%clk
0:02:22.5]} 17. Qc2 {[%clk 0:02:09.6]} 17... Rfd8 {[%clk 0:02:16]} 18. f3 {[%clk
0:01:50.4]} 18... Nxd3 {[%clk 0:02:12.8]} 19. Rxd3 {[%clk 0:01:47.4]} 19... Nxg3
{[%clk 0:02:12.3]} 20. hxg3 {[%clk 0:01:45.7]} 20... Qg5 {[%clk 0:02:11.3]} 21.
f4 {[%clk 0:01:38.3]} 21... Qxg3 {[%clk 0:02:09.2]} 22. Rxd8+ {[%clk 0:01:37.8]}
22... Rxd8 {[%clk 0:02:07.8]} 23. Qe2 {[%clk 0:01:33.5]} 23... Be4 {[%clk
0:02:01.8]} 24. Nf3 {[%clk 0:01:30.8]} 24... Qg6 {[%clk 0:01:53.3]} 25. Ne5
{[%clk 0:01:28.1]} 25... Qg3 {[%clk 0:01:46.9]} 26. Nf3 {[%clk 0:01:25.5]} 26...
Rd6 {[%clk 0:01:23.5]} 27. a4 {[%clk 0:01:18.2]} 27... Bd3 {[%clk 0:01:18.2]}
28. Qf2 {[%clk 0:01:12.2]} 28... Qxf2+ {[%clk 0:01:17.7]} 29. Rxf2 {[%clk
0:01:13.1]} 29... Bxc4 {[%clk 0:01:17.1]} 30. Ne5 {[%clk 0:01:10.8]} 30... Rd1+
{[%clk 0:01:15.2]} 31. Kh2 {[%clk 0:01:09.8]} 31... Bd5 {[%clk 0:01:15.6]} 32.
Rc2 {[%clk 0:01:08.8]} 32... f6 {[%clk 0:01:11.6]} 33. Nf3 {[%clk 0:01:02.8]}
33... Bxf3 {[%clk 0:01:10.8]} 34. gxf3 {[%clk 0:01:01.4]} 34... Ra1 {[%clk
0:01:11]} 35. Rc4 {[%clk 0:01:00.6]} 35... Ra3 {[%clk 0:01:08.7]} 36. Rc8+
{[%clk 0:01:00.7]} 36... Kh7 {[%clk 0:01:08.3]} 37. Rc4 {[%clk 0:00:46.4]} 37...
Rxe3 {[%clk 0:01:06.5]} 38. Rc7 {[%clk 0:00:46.4]} 38... Rxf3 {[%clk 0:01:05.7]}
39. Rxa7 {[%clk 0:00:47.1]} 39... Rxf4 {[%clk 0:01:05.5]} 40. Ra6 {[%clk
0:00:28]} 40... e5 {[%clk 0:01:04.4]} 41. Rxb6 {[%clk 0:00:27.4]} 41... Rxa4
{[%clk 0:01:03.8]} 42. Kg3 {[%clk 0:00:26.1]} 42... h5 {[%clk 0:01:01.7]} 0-1